bitfinex/quotes_SOLUSD_20250310
["timestamp","ask_amount","ask_price","bid_price","bid_amount"]
[1741601839333,38.03766333,128.48,128.42,38.03766333]
[1741601839525,119.13766333,128.49,128.4,38.32198647]
[1741601839828,81.1,128.49,128.44,38.03766333]
[1741601840037,88.8814,128.51,128.44,20.0]
[1741601840224,81.1,128.51,128.48,38.03766333]
[1741601840429,7.781,128.52,128.48,38.03766333]
[1741601840630,45.81866333,128.52,128.45,0.14216157]
[1741601840810,146.37086333,128.52,128.47,38.03766333]
[1741601841011,88.881,128.52,128.47,38.03766333]
[1741601841215,0.063,128.53,128.51,38.03766333]
[1741601841411,0.063,128.53,128.52,38.03766333]
[1741601841637,0.063,128.53,128.5,58.03766333]
[1741601841934,7.8432,128.53,128.49,38.03766333]
[1741601842131,7.8432,128.53,128.5,38.03766333]
[1741601842314,81.1,128.52,128.47,38.03766333]
[1741601842519,38.03766333,128.51,128.46,38.03766333]
[1741601843029,7.7821,128.5,128.46,38.03766333]
[1741601844035,38.03766333,128.48,128.43,38.03766333]
[1741601844236,119.13766333,128.48,128.43,38.03766333]
[1741601844428,81.1,128.48,128.44,38.03766333]
[1741601844627,81.1,128.48,128.46,38.03766333]
[1741601845027,81.1,128.48,128.45,38.03766333]
[1741601845241,88.8837,128.48,128.45,38.03766333]
[1741601845537,81.1,128.48,128.46,38.03766333]
[1741601846343,0.063,128.53,128.48,0.14216157]
[1741601846523,0.063,128.53,128.52,38.03766333]
[1741601846724,7.8432,128.53,128.51,38.03766333]
[1741601846938,7.8432,128.53,128.46,63.03737376]
[1741601846939,7.8432,128.53,128.49,38.03766333]
[1741601847116,126.98086333,128.53,128.48,38.03766333]
[1741601847531,108.3939,128.53,128.48,38.03766333]
[1741601848540,81.163,128.53,128.52,38.03766333]
[1741601848717,0.063,128.53,128.52,38.03766333]
[1741601849343,0.063,128.53,128.52,83.85612666]
[1741601849926,0.063,128.53,128.52,45.81846333]
[1741601850319,0.063,128.53,128.52,84.1404498]
[1741601851245,0.063,128.53,128.52,402.34843045]
[1741601852145,0.063,128.54,128.53,20.563772]
[1741601852341,0.063,128.54,128.53,58.60143533]
[1741601853430,0.063,128.55,128.54,0.14216157]
[1741601853636,0.063,128.55,128.54,38.1798249]
[1741601855260,0.063,128.55,128.54,45.9594249]
[1741601855824,0.063,128.55,128.54,38.1798249]
[1741601856028,0.063,128.55,128.54,38.03766333]
[1741601856959,0.063,128.55,128.47,8.06822314]
[1741601857134,38.03766333,128.53,128.48,38.03766333]
[1741601857336,38.03766333,128.53,128.52,0.03]
[1741601857539,88.8796,128.54,128.52,0.03]
[1741601857763,38.03766333,128.53,128.52,0.03]
[1741601858554,0.28432314,128.52,128.45,38.03766333]
[1741601858840,38.03766333,128.49,128.44,0.03]
[1741601859035,7.7827,128.49,128.44,38.06766333]
[1741601859240,114.8,128.51,128.47,38.03766333]
[1741601859434,7.7808,128.53,128.49,38.03766333]
[1741601859630,7.7808,128.53,128.48,38.03766333]
[1741601859836,126.91846333,128.53,128.48,38.03766333]
[1741601860051,81.1,128.53,128.49,38.03766333]
[1741601860257,81.1,128.53,128.51,56.82376777]
[1741601860555,56.82376777,128.53,128.48,56.82376777]
[1741601860757,137.92376777,128.52,128.45,0.14216157]
[1741601860942,137.92376777,128.52,128.47,56.82376777]
[1741601861138,7.7814,128.51,128.46,56.82376777]
[1741601862174,7.7814,128.51,128.47,56.82376777]
[1741601862854,81.1,128.5,128.44,0.03]
[1741601863053,56.82376777,128.49,128.44,56.85376777]
[1741601863266,137.92376777,128.49,128.44,56.85376777]
[1741601863648,56.82376777,128.46,128.44,0.03]
[1741601864372,144.43076777,128.48,128.44,0.03]
[1741601864549,56.82376777,128.47,128.44,0.03]
[1741601864974,56.82376777,128.45,128.44,0.03]
[1741601865560,137.92376777,128.45,128.44,0.03]
[1741601865775,156.7155782,128.45,128.44,0.03]
[1741601866155,156.85773977,128.45,128.44,0.03]
[1741601866559,0.14216157,128.44,128.37,56.82376777]
[1741601866772,56.82376777,128.42,128.36,76.82376777]
[1741601866959,56.82376777,128.42,128.37,56.82376777]
[1741601867458,137.92376777,128.43,128.37,56.82376777]
[1741601867839,137.92376777,128.43,128.38,56.82376777]
[1741601868744,137.92376777,128.43,128.37,56.82376777]
[1741601868938,56.82376777,128.42,128.37,56.82376777]
[1741601869143,56.82376777,128.41,128.36,56.82376777]
[1741601869743,81.1,128.42,128.38,56.82376777]
[1741601869946,81.1,128.42,128.38,0.03]
[1741601870144,81.1,128.42,128.38,56.85376777]
[1741601871068,88.887,128.42,128.38,0.03]
[1741601871239,56.82376777,128.41,128.38,0.03]
[1741601871443,56.82376777,128.4,128.38,0.03]
[1741601871654,127.00394886,128.42,128.38,0.03]
[1741601871655,137.92376777,128.39,128.38,0.03]
[1741601872467,81.1,128.39,128.38,0.03]
[1741601873371,81.1,128.39,128.38,56.85376777]
[1741601873872,81.1,128.39,128.38,0.03]
[1741601874159,81.1,128.43,128.38,56.85376777]
[1741601874373,87.1757,128.45,128.42,56.82376777]
[1741601874753,6.0757,128.45,128.42,56.82376777]
[1741601874959,137.92376777,128.47,128.38,18.963972]
[1741601874960,81.1,128.47,128.43,56.82376777]
[1741601875156,88.8842,128.47,128.43,56.82376777]
[1741601875465,145.70766777,128.47,128.42,56.82376777]
[1741601875647,56.82376777,128.46,128.41,56.82376777]
[1741601875850,88.8839,128.47,128.42,56.82376777]
[1741601876444,145.70766777,128.47,128.42,56.82376777]
[1741601877255,56.82376777,128.45,128.38,0.03]
[1741601877564,56.82376777,128.43,128.38,64.64306777]
[1741601877866,137.92376777,128.44,128.38,64.64306777]
[1741601878046,137.92376777,128.44,128.38,56.85376777]
[1741601878239,56.82376777,128.43,128.38,56.85376777]
[1741601878447,81.1,128.42,128.38,0.03]
[1741601878679,56.82376777,128.41,128.38,0.03]
[1741601878859,81.1,128.41,128.38,56.85376777]
[1741601879362,81.1,128.41,128.4,56.82376777]
[1741601879559,81.1,128.41,128.39,56.82376777]
[1741601880069,81.1,128.41,128.38,0.03]
[1741601880273,88.8875,128.41,128.38,56.85376777]
[1741601880454,56.82376777,128.39,128.38,0.03]
[1741601880968,123.32063977,128.39,128.38,0.03]
[1741601881281,56.82376777,128.35,128.31,0.03]
[1741601881490,81.1,128.34,128.31,0.03]
[1741601881776,81.1,128.33,128.31,56.85376777]
[1741601881956,115.08432314,128.32,128.31,0.03]
[1741601882143,190.55773977,128.32,128.31,0.03]
[1741601882345,114.8,128.32,128.31,0.03]
[1741601882563,81.1,128.32,128.31,0.03]
[1741601882970,88.893,128.32,128.31,0.03]
[1741601883150,81.1,128.32,128.31,0.03]
[1741601883555,81.1,128.35,128.31,0.03]
[1741601883759,7.7909,128.36,128.34,38.03116066]
[1741601883760,81.1,128.36,128.34,38.03116066]
[1741601883960,81.1,128.36,128.35,38.03116066]
[1741601884155,126.92056066,128.38,128.33,38.03116066]
[1741601884460,81.1,128.38,128.33,56.98098115]
[1741601884663,81.1,128.38,128.34,56.98098115]
[1741601885275,21.0121,128.43,128.37,56.98098115]
[1741601885276,121.1015,128.42,128.37,56.98098115]
[1741601885568,144.38248115,128.42,128.37,56.98098115]
[1741601886475,75.77279158,128.4,128.34,56.98098115]
[1741601886782,138.08098115,128.39,128.33,56.98098115]
[1741601887069,56.98098115,128.36,128.31,0.03]
[1741601887566,56.98098115,128.35,128.31,0.03]
[1741601887748,81.1,128.34,128.31,0.03]
[1741601887953,138.08098115,128.34,128.31,0.03]
[1741601888359,81.1,128.34,128.31,0.03]
[1741601888553,56.98098115,128.33,128.31,0.03]
[1741601888858,138.08098115,128.33,128.31,0.03]
[1741601889361,156.87279158,128.32,128.31,0.03]
[1741601890355,81.1,128.32,128.31,0.03]
[1741601890885,99.89181043,128.32,128.31,0.03]
[1741601891189,81.1,128.32,128.31,0.03]
[1741601891550,6.2156,128.35,128.31,57.01098115]
[1741601891848,56.98098115,128.34,128.31,0.03]
[1741601892052,81.1,128.33,128.31,0.03]
[1741601893879,114.8,128.35,128.32,56.98098115]
[1741601894084,87.3349,128.39,128.34,56.98098115]
[1741601894376,81.1,128.39,128.37,56.98098115]
[1741601894678,81.163,128.41,128.37,64.77058115]
[1741601895555,81.163,128.41,128.37,56.98098115]
[1741601895965,88.9506,128.41,128.37,56.98098115]
[1741601896573,81.163,128.41,128.38,56.98098115]
[1741601896981,0.063,128.41,128.39,56.98098115]
[1741601898181,0.063,128.41,128.38,56.98098115]
[1741601898874,0.063,128.41,128.34,76.46028115]
[1741601898875,18.71264886,128.41,128.37,56.98098115]
[1741601899485,0.063,128.41,128.39,56.98098115]
[1741601899657,0.063,128.41,128.38,56.98098115]
[1741601900171,0.063,128.41,128.4,56.98098115]
[1741601900980,0.063,128.41,128.39,56.98098115]
[1741601901283,0.063,128.41,128.37,76.98098115]
[1741601901478,0.063,128.41,128.38,56.98098115]
[1741601901675,0.063,128.41,128.4,56.98098115]
[1741601902883,0.063,128.41,128.4,121.7500623]
[1741601903380,0.063,128.41,128.4,64.76908115]
[1741601903983,0.063,128.41,128.4,121.89222387]
[1741601904188,0.063,128.41,128.38,319.7889]
[1741601904485,0.063,128.41,128.4,56.98098115]
[1741601904680,0.063,128.41,128.4,113.9619623]
[1741601904889,0.063,128.41,128.4,56.98098115]
[1741601905564,0.063,128.41,128.4,64.76908115]
[1741601905961,0.063,128.46,128.43,20.0]
[1741601906185,0.063,128.46,128.45,56.98098115]
[1741601906373,0.063,128.46,128.45,37.90688484]
[1741601907487,0.063,128.46,128.43,57.90688484]
[1741601907662,0.063,128.46,128.41,7.7874]
[1741601907868,0.063,128.46,128.43,37.90688484]
[1741601908673,0.063,128.46,128.44,37.90688484]
[1741601909093,0.063,128.46,128.43,37.90688484]
[1741601909294,0.063,128.46,128.44,37.90688484]
[1741601909495,0.063,128.46,128.45,37.90688484]
[1741601910296,0.063,128.46,128.45,75.95593125]
[1741601910600,0.063,128.53,128.46,0.28432314]
[1741601910775,0.063,128.53,128.51,37.90688484]
[1741601911166,0.063,128.53,128.52,37.90688484]
[1741601911367,0.063,128.53,128.49,37.90688484]
[1741601911989,0.063,128.53,128.5,37.90688484]
[1741601912181,0.063,128.53,128.51,37.90688484]
[1741601912382,0.063,128.53,128.5,37.90688484]
[1741601912967,0.063,128.53,128.51,37.90688484]
[1741601913179,0.063,128.53,128.52,37.90688484]
[1741601913705,0.063,128.53,128.51,37.90688484]
[1741601913901,0.063,128.53,128.5,37.90688484]
[1741601914077,0.063,128.53,128.51,37.90688484]
[1741601914276,0.063,128.53,128.52,37.90688484]
[1741601914878,0.063,128.53,128.51,37.90688484]
[1741601915290,0.063,128.53,128.52,37.90688484]
[1741601915994,0.063,128.53,128.51,37.90688484]
[1741601916194,0.063,128.53,128.52,37.90688484]
[1741601916681,0.063,128.53,128.51,37.90688484]
[1741601917488,0.063,128.53,128.49,37.90688484]
[1741601917686,0.063,128.53,128.47,15.57466157]
[1741601917687,0.063,128.53,128.5,37.90688484]
[1741601918097,0.063,128.53,128.51,37.90688484]
[1741601918684,0.063,128.53,128.48,0.14216157]
[1741601918881,0.063,128.53,128.52,37.90688484]
[1741601920112,0.063,128.53,128.51,37.90688484]
[1741601920817,0.063,128.53,128.52,37.90688484]
[1741601921121,0.063,128.53,128.5,37.90688484]
[1741601921596,0.063,128.53,128.47,15.4324]
[1741601921797,119.00688484,128.52,128.47,37.90688484]
[1741601921989,119.00688484,128.52,128.46,37.90688484]
[1741601922186,119.00688484,128.52,128.47,37.90688484]
[1741601922898,81.1,128.52,128.48,37.90688484]
[1741601923102,88.8811,128.52,128.48,37.90688484]
[1741601923602,126.78798484,128.52,128.47,37.90688484]
[1741601923902,37.90688484,128.51,128.44,7.8154]
[1741601924097,37.90688484,128.49,128.44,37.93688484]
[1741601924301,81.1,128.5,128.44,0.03]
[1741601924302,37.90688484,128.46,128.44,0.03]
[1741601925411,7.7851,128.45,128.44,0.03]
[1741601926104,45.69198484,128.45,128.44,0.03]
[1741601926303,37.90688484,128.46,128.44,0.03]
[1741601926610,45.69078484,128.47,128.44,0.03]
[1741601926809,81.1,128.48,128.44,37.93688484]
[1741601927498,88.8833,128.48,128.44,37.93688484]
[1741601927702,81.1,128.48,128.44,37.93688484]
[1741601927898,88.8835,128.48,128.44,37.93688484]
[1741601928404,7.7835,128.48,128.44,37.93688484]
[1741601928597,7.7835,128.48,128.44,0.03]
[1741601929309,119.00688484,128.47,128.44,0.03]
[1741601929486,56.5565337,128.45,128.44,0.03]
[1741601930492,56.69869527,128.45,128.44,0.03]
[1741601930702,96.65355684,128.45,128.44,0.03]
[1741601931511,106.01435684,128.45,128.44,0.0001]
[1741601933101,70.4543337,128.45,128.44,0.0001]
[1741601933412,18.64964886,128.45,128.44,0.0001]
[1741601933610,37.90688484,128.46,128.44,0.0001]
[1741601933812,79.39098484,128.47,128.44,0.0001]
[1741601934612,37.96988484,128.48,128.44,0.0001]
[1741601934919,0.063,128.48,128.44,0.0001]
[1741601935209,81.163,128.48,128.44,37.90698484]
[1741601935405,81.163,128.48,128.44,45.69248484]
[1741601935588,81.163,128.48,128.44,0.0001]
[1741601935793,37.90688484,128.47,128.44,0.0001]
[1741601935994,37.90688484,128.46,128.44,0.0001]
[1741601936195,37.90688484,128.47,128.44,0.0001]
[1741601936493,37.90688484,128.45,128.44,0.0001]
[1741601936908,81.1,128.46,128.44,0.0001]
[1741601937906,119.06988484,128.48,128.44,0.0001]
[1741601938105,81.163,128.48,128.44,37.90698484]
[1741601938305,88.9464,128.48,128.44,37.90698484]
[1741601938500,0.063,128.48,128.45,37.90688484]
[1741601938798,7.8464,128.48,128.44,37.90698484]
[1741601939319,45.75328484,128.48,128.44,0.0001]
[1741601939699,7.8464,128.48,128.44,37.90698484]
[1741601939893,37.90688484,128.47,128.44,0.0001]
[1741601941122,37.90688484,128.46,128.44,0.0001]
[1741601941296,37.90688484,128.47,128.44,0.0001]
[1741601941498,7.7844,128.47,128.44,0.0001]
[1741601941800,45.75328484,128.48,128.44,0.0001]
[1741601942022,37.90688484,128.47,128.44,0.0001]
[1741601942316,45.75328484,128.48,128.44,0.0001]
[1741601942516,7.8464,128.48,128.44,0.0001]
[1741601942720,45.75328484,128.48,128.44,0.0001]
[1741601943108,0.063,128.47,128.44,0.0001]
[1741601943416,0.063,128.47,128.46,45.69138484]
[1741601943595,0.063,128.47,128.46,83.74043125]
[1741601943801,0.063,128.47,128.46,85.52329282]
[1741601944024,0.063,128.53,128.47,0.14216157]
[1741601944221,0.063,128.53,128.52,37.90688484]
[1741601944899,0.063,128.53,128.51,37.90688484]
[1741601945094,7.8433,128.53,128.5,37.90688484]
[1741601945309,0.063,128.53,128.5,37.90688484]
[1741601945507,0.063,128.53,128.47,0.14216157]
[1741601945720,37.96988484,128.53,128.48,37.90688484]
[1741601945924,37.90688484,128.51,128.46,1.6407]
[1741601946100,37.90688484,128.51,128.46,39.54758484]
[1741601946295,37.90688484,128.48,128.44,0.0001]
[1741601946517,37.90688484,128.47,128.44,0.0001]
[1741601946921,37.90688484,128.48,128.44,0.0001]
[1741601947394,7.7845,128.46,128.44,0.0001]
[1741601948115,7.7833,128.48,128.44,0.0001]
[1741601948313,88.8829,128.49,128.44,37.90698484]
[1741601948508,88.8829,128.49,128.45,37.90688484]
[1741601948705,126.78978484,128.49,128.44,37.90698484]
[1741601948910,37.90688484,128.48,128.44,0.0001]
[1741601949419,88.8829,128.49,128.45,37.90688484]
[1741601949599,126.78978484,128.49,128.44,37.90698484]
[1741601950101,33.7,128.51,128.44,37.90698484]
[1741601950102,119.00688484,128.52,128.47,37.90688484]
[1741601950508,81.1,128.52,128.47,37.90688484]
[1741601950822,119.00688484,128.52,128.47,37.90688484]
[1741601951019,119.00688484,128.52,128.44,37.90698484]
[1741601951020,37.90688484,128.5,128.44,37.90698484]
[1741601951522,119.00688484,128.51,128.46,37.90688484]
[1741601951722,126.78878484,128.51,128.46,37.90688484]
[1741601951910,37.90688484,128.49,128.44,37.90698484]
[1741601952105,88.8819,128.51,128.44,37.90698484]
[1741601952106,126.78878484,128.51,128.45,37.90688484]
[1741601952421,88.8816,128.51,128.46,37.90688484]
[1741601952625,126.78848484,128.51,128.46,37.90688484]
[1741601953325,37.90688484,128.5,128.44,37.90698484]
[1741601953512,37.90688484,128.48,128.44,0.0001]
[1741601953821,45.69068484,128.48,128.44,0.0001]
[1741601954020,7.7838,128.48,128.44,0.0001]
[1741601954221,119.00688484,128.5,128.45,37.90688484]
[1741601954400,81.1,128.5,128.45,37.90688484]
[1741601954601,37.90688484,128.49,128.44,37.90698484]
[1741601956203,7.7829,128.49,128.44,45.69248484]
[1741601956403,126.85228484,128.5,128.44,45.69248484]
[1741601957018,126.85228484,128.5,128.45,37.90688484]
[1741601957217,81.163,128.5,128.46,37.90688484]
[1741601957424,0.063,128.5,128.46,37.90688484]
[1741601957620,0.063,128.5,128.48,37.90688484]
[1741601957828,7.8451,128.5,128.45,37.90688484]
[1741601958135,45.75198484,128.5,128.44,45.69248484]
[1741601958428,119.00688484,128.49,128.44,37.90698484]
[1741601958650,37.90688484,128.47,128.44,0.0001]
[1741601959124,81.1,128.48,128.44,37.90698484]
[1741601959517,119.00688484,128.48,128.44,0.0001]
[1741601960326,7.7839,128.47,128.44,0.0001]
[1741601960635,37.90688484,128.46,128.44,0.0001]
[1741601960833,7.7839,128.47,128.44,0.0001]
[1741601960834,37.90688484,128.45,128.44,0.0001]
[1741601961327,132.89868484,128.47,128.44,0.0001]
[1741601961715,81.1,128.47,128.44,0.0001]
[1741601962113,126.78978484,128.49,128.44,37.90698484]
[1741601962317,81.1,128.49,128.44,37.90698484]
[1741601962635,126.78958484,128.49,128.44,45.69238484]
[1741601962822,37.90688484,128.45,128.44,0.0001]
[1741601963027,37.90688484,128.47,128.44,0.0001]
[1741601963225,37.90688484,128.45,128.44,0.0001]
[1741601963519,56.69869527,128.45,128.44,0.0001]
[1741601964229,33.7,128.47,128.44,0.0001]
[1741601964230,56.5565337,128.46,128.44,0.0001]
[1741601964426,64.48379527,128.45,128.44,0.0001]
[1741601966237,64.62595684,128.45,128.44,0.0001]
[1741601967232,18.64964886,128.4,128.37,0.03]
[1741601967418,37.90688484,128.39,128.37,0.03]
[1741601968017,18.64964886,128.4,128.37,0.03]
[1741601968218,56.5565337,128.4,128.37,0.03]
[1741601968436,18.64964886,128.4,128.37,0.03]
[1741601969041,64.3447337,128.4,128.37,0.03]
[1741601970439,56.5565337,128.4,128.37,0.03]
[1741601970648,64.3447337,128.4,128.37,0.03]
[1741601970823,56.5565337,128.4,128.37,0.03]
[1741601971637,64.3447337,128.4,128.37,0.03]
[1741601972343,56.5565337,128.4,128.37,0.03]
[1741601972521,37.90688484,128.42,128.37,37.93688484]
[1741601972835,119.00688484,128.42,128.38,7.7893]
[1741601973043,18.64964886,128.41,128.37,45.72658484]
[1741601973454,114.8,128.44,128.4,37.90688484]
[1741601973621,81.1,128.46,128.42,37.90688484]
[1741601973945,81.1,128.46,128.43,37.90688484]
[1741601974156,81.1,128.48,128.44,37.90688484]
[1741601974451,37.96988484,128.49,128.46,37.90688484]
[1741601974452,0.063,128.49,128.46,37.90688484]
[1741601974618,0.063,128.49,128.48,45.69018484]
[1741601974817,0.063,128.49,128.48,37.90688484]
[1741601975444,0.063,128.49,128.47,45.69068484]
[1741601975652,0.063,128.49,128.45,1.5639]
[1741601975851,37.96988484,128.49,128.44,37.90688484]
[1741601976025,37.90688484,128.48,128.43,37.90688484]
[1741601976217,81.1,128.47,128.42,37.90688484]
[1741601976529,81.1,128.47,128.43,37.90688484]
[1741601976731,126.79078484,128.47,128.42,37.90688484]
[1741601977128,81.1,128.47,128.43,37.90688484]
[1741601977637,88.884,128.47,128.43,37.90688484]
[1741601977841,37.90688484,128.46,128.41,39.42888484]
[1741601978139,88.884,128.47,128.42,37.90688484]
[1741601978441,126.79088484,128.47,128.42,37.90688484]
[1741601978614,7.7857,128.44,128.4,37.90688484]
[1741601978817,37.90688484,128.42,128.37,1.573]
[1741601979021,37.90688484,128.42,128.37,39.47988484]
[1741601979340,137.6565337,128.43,128.38,37.90688484]
[1741601979739,119.00688484,128.42,128.37,39.47988484]
[1741601979928,119.00688484,128.42,128.37,37.93688484]
[1741601980239,18.64964886,128.41,128.37,37.93688484]
[1741601980422,18.64964886,128.41,128.37,0.03]
[1741601980623,37.90688484,128.4,128.37,0.03]
[1741601980951,88.8877,128.41,128.37,0.03]
[1741601981171,81.1,128.41,128.37,37.93688484]
[1741601981641,88.8876,128.41,128.37,37.93688484]
[1741601982034,81.1,128.41,128.38,37.90688484]
[1741601982622,126.79438484,128.41,128.37,0.03]
[1741601983658,56.5565337,128.4,128.37,0.03]
[1741601983849,56.5565337,128.38,128.37,0.03]
[1741601984346,56.69869527,128.38,128.37,0.03]
[1741601984551,56.84085684,128.38,128.37,0.03]
[1741601985333,64.63015684,128.38,128.37,0.03]
[1741601985529,26.723272,128.38,128.37,0.03]
[1741601985728,64.63015684,128.38,128.37,0.03]
[1741601986829,56.84085684,128.38,128.37,0.03]
[1741601987030,45.69578484,128.39,128.37,0.03]
[1741601987239,37.90688484,128.39,128.37,0.03]
[1741601987427,90.39869527,128.4,128.37,0.03]
[1741601987629,71.60688484,128.4,128.37,0.03]
[1741601988263,37.90688484,128.4,128.37,0.03]
[1741601988560,37.90688484,128.41,128.37,0.03]
[1741601988863,18.79181043,128.41,128.37,0.03]
[1741601989061,56.69869527,128.41,128.37,0.03]
[1741601990038,152.70688484,128.4,128.37,0.03]
[1741601990240,114.8,128.4,128.37,0.03]
[1741601990960,81.1,128.4,128.37,0.03]
[1741601991154,81.1,128.4,128.38,37.90688484]
[1741601991358,81.1,128.4,128.38,45.69568484]
[1741601991746,81.1,128.4,128.39,37.90688484]
[1741601991950,81.163,128.44,128.39,37.90688484]
[1741601992151,81.163,128.44,128.41,37.90688484]
[1741601992334,81.163,128.44,128.42,37.90688484]
[1741601993655,81.163,128.44,128.41,45.69418484]
[1741601994544,119.06988484,128.44,128.39,45.69558484]
[1741601995354,37.90688484,128.43,128.38,45.69598484]
[1741601995565,45.69348484,128.43,128.38,37.90688484]
[1741601995957,45.69348484,128.43,128.38,45.69608484]
[1741601996260,37.90688484,128.43,128.38,45.69608484]
[1741601996449,126.85578484,128.44,128.38,45.69608484]
[1741601996763,37.90688484,128.43,128.38,45.69608484]
[1741601997741,126.85578484,128.44,128.38,45.69608484]
[1741601998662,0.14216157,128.42,128.37,300.03]
[1741601998859,133.59181043,128.43,128.37,300.03]
[1741601998860,37.90688484,128.4,128.37,300.03]
[1741601999240,37.90688484,128.38,128.37,300.03]
[1741601999651,45.69618484,128.38,128.37,300.03]
[1741601999961,64.63015684,128.38,128.37,300.03]
[1741602000462,20.0,128.34,128.31,0.03]
[1741602000676,57.90688484,128.34,128.31,0.03]
[1741602001360,37.90688484,128.33,128.31,0.03]
[1741602002562,57.90688484,128.34,128.31,0.03]
[1741602002757,38.04904641,128.32,128.31,0.03]
[1741602002963,37.90688484,128.32,128.31,0.03]
[1741602003165,91.60688484,128.34,128.31,0.03]
[1741602003360,6.0224,128.38,128.31,37.93688484]
[1741602003550,37.90688484,128.37,128.32,37.90688484]
[1741602003753,37.90688484,128.37,128.32,45.69938484]
[1741602003951,43.92928484,128.38,128.32,45.69938484]
[1741602004148,37.90688484,128.37,128.32,7.7925]
[1741602004346,37.90688484,128.35,128.31,0.03]
[1741602004543,37.90688484,128.33,128.31,0.03]
[1741602004749,119.29120798,128.32,128.31,0.03]
[1741602004954,71.89120798,128.32,128.31,0.03]
[1741602005267,33.7,128.32,128.31,0.03]
[1741602005453,114.94216157,128.36,128.31,7.8236]
[1741602005655,37.90688484,128.34,128.31,0.03]
[1741602005857,37.90688484,128.33,128.31,0.03]
[1741602006165,137.79869527,128.32,128.31,0.03]
[1741602006573,137.94085684,128.32,128.31,0.03]
[1741602007159,81.1,128.32,128.31,0.03]
[1741602007359,137.94085684,128.32,128.31,0.03]
[1741602007669,144.25100144,128.32,128.31,0.03]
[1741602007871,64.63385684,128.32,128.31,0.03]
[1741602008263,71.60688484,128.33,128.31,0.03]
[1741602008460,126.79938484,128.33,128.31,0.03]
[1741602008767,56.69869527,128.32,128.31,0.03]
[1741602009142,81.1,128.33,128.31,0.03]
[1741602009561,119.00688484,128.33,128.31,0.03]
[1741602009949,126.79938484,128.33,128.31,0.03]
[1741602010876,37.90688484,128.32,128.31,0.03]
[1741602011048,56.69869527,128.32,128.31,0.03]
[1741602012871,64.49169527,128.32,128.31,0.03]
[1741602013372,79.39948484,128.33,128.31,0.03]
[1741602013555,45.69948484,128.33,128.31,0.03]
[1741602014151,37.90688484,128.32,128.31,0.03]
[1741602014365,18.933972,128.32,128.31,0.03]
[1741602014583,64.63385684,128.32,128.31,0.03]
[1741602014780,64.49169527,128.32,128.31,0.03]
[1741602014995,64.63385684,128.32,128.31,0.03]
[1741602015197,64.49169527,128.32,128.31,0.03]
[1741602015481,18.79181043,128.32,128.31,0.03]
[1741602015658,26.58481043,128.32,128.31,0.03]
[1741602016077,41.4926,128.33,128.31,0.03]
[1741602016397,7.7905,128.36,128.32,37.90688484]
[1741602016886,0.14216157,128.33,128.31,0.03]
[1741602017082,56.5565337,128.34,128.31,0.03]
[1741602017267,56.69869527,128.32,128.31,0.03]
[1741602017981,56.84085684,128.32,128.31,0.03]
[1741602018777,20.14216157,128.3,128.29,0.03]
[1741602018975,76.69869527,128.3,128.29,0.03]
[1741602019285,0.14216157,128.29,128.25,0.03]
[1741602019584,76.84085684,128.26,128.25,0.03]
[1741602019765,18.79181043,128.25,128.24,0.03]
[1741602019957,56.69869527,128.25,128.24,0.03]
[1741602020481,56.84085684,128.25,128.24,0.0001]
[1741602020882,66.63805684,128.25,128.24,0.0001]
[1741602021191,64.63805684,128.25,128.24,0.0001]
[1741602021375,56.84085684,128.25,128.24,0.0001]
[1741602022779,37.90688484,128.26,128.24,0.0001]
[1741602022983,20.0,128.25,128.24,0.0001]
[1741602023287,33.7,128.27,128.24,0.0001]
[1741602023585,33.7,128.27,128.24,37.90698484]
[1741602024000,33.7,128.27,128.26,37.90688484]
[1741602024171,33.7,128.27,128.25,37.90688484]
[1741602024674,37.90688484,128.31,128.26,37.90688484]